lending/lending_fUSD_20241007
["ID","MTS","AMOUNT","RATE_DAILY","PERIOD"]
[340014297,1728328291552,-641.52,0.00041369,120]
[340014298,1728328291562,-500.0,0.00041369,120]
[340014299,1728328291572,-500.0,0.00041369,120]
[340014300,1728328291581,-500.0,0.00041369,120]
[340014301,1728328291591,-500.0,0.00041369,120]
[340014302,1728328291601,-551.65576185,0.00041369,120]
[340014303,1728328291613,-500.0,0.00041369,120]
[340014304,1728328291623,-500.0,0.00041369,120]
[340014305,1728328291632,-500.0,0.00041369,120]
[340014306,1728328291641,-546.74,0.00041369,120]
[340014307,1728328291651,-500.0,0.00041369,120]
[340014308,1728328291661,-421.76990717,0.00041369,120]
[340014309,1728328291670,-204.18,0.00041369,120]
[340014310,1728328291680,-213.7,0.00041369,120]
[340014311,1728328291690,-500.0,0.00041369,120]
[340014312,1728328291699,-500.0,0.00041369,120]
[340014313,1728328291709,-621.43922216,0.00041369,120]
[340014314,1728328291719,-503.0,0.00041369,120]
[340014315,1728328291729,-1259.32,0.00041369,120]
[340014316,1728328291739,-500.0,0.00041369,120]
[340014317,1728328291749,-500.0,0.00041369,14]
[340014318,1728328291758,-512.09,0.00041369,120]
[340014319,1728328291768,-538.11,0.00041369,120]
[340014320,1728328291779,-360.74319771,0.00041369,120]
[340014321,1728328291789,-656.69,0.00041369,120]
[340014322,1728328291799,-500.0,0.00041369,120]
[340014323,1728328291809,-500.0,0.00041369,120]
[340014324,1728328291818,-502.44,0.00041369,120]
[340014325,1728328291828,-500.0,0.00041369,120]
[340014326,1728328291837,-500.0,0.00041369,120]
[340014327,1728328291847,-2246.05,0.00041369,120]
[340014328,1728328291856,-343.3090949,0.00041369,120]
[340014329,1728328291868,-500.0,0.00041369,120]
[340014330,1728328291878,-381.08,0.00041369,120]
[340014331,1728328291888,-335.6,0.00041369,120]
[340014332,1728328291897,-1000.0,0.00041369,120]
[340014333,1728328291905,-500.0,0.00041369,120]
[340014334,1728328291914,-500.0,0.00041369,120]
[340014335,1728328291924,-554.78,0.00041369,120]
[340014336,1728328291934,-500.0,0.00041369,120]
[340014337,1728328291943,-500.0,0.00041369,120]
[340014338,1728328291954,-500.0,0.00041369,120]
[340014339,1728328291964,-500.0,0.00041369,120]
[340014340,1728328291973,-2095.07,0.00041369,120]
[340014341,1728328291982,-500.0,0.00041369,120]
[340014342,1728328291992,-500.0,0.00041369,120]
[340014343,1728328292001,-500.0,0.00041369,120]
[340014344,1728328292010,-208.42849524,0.00041444,120]
[340014345,1728328292019,-2110.0,0.000415,2]
[340014346,1728328292029,-2000.0,0.00041506,120]
[340014347,1728328292038,-500.0,0.00041592,60]
[340014348,1728328292047,-500.0,0.00041592,60]
[340014349,1728328292057,-500.0,0.00041643,120]
[340014350,1728328292067,-427.47382733,0.00041643,120]
[340014351,1728328292076,-526.85,0.00041643,120]
[340014352,1728328292085,-500.0,0.00041643,120]
[340014353,1728328292095,-500.0,0.00041643,120]
[340014354,1728328292104,-546.81,0.00041643,120]
[340014355,1728328292116,-1790.58,0.00041643,120]
[340014356,1728328292126,-500.0,0.00041643,30]
[340014357,1728328292141,-500.0,0.00041643,120]
[340014358,1728328292150,-641.52,0.00041643,120]
[340014359,1728328292160,-476.76,0.00041643,120]
[340014360,1728328292170,-500.0,0.00041643,120]
[340014361,1728328292181,-500.0,0.00041643,120]
[340014362,1728328292572,-500.0,0.00041643,120]
[340014363,1728328292583,-500.0,0.00041643,120]
[340014364,1728328292593,-500.0,0.00041643,120]
[340014365,1728328292602,-500.0,0.00041643,120]
[340014366,1728328292614,-546.74,0.00041643,120]
[340014367,1728328292623,-208.03,0.00041643,120]
[340014368,1728328292633,-213.7,0.00041643,120]
[340014369,1728328292642,-500.0,0.00041643,120]
[340014370,1728328292652,-500.0,0.00041643,120]
[340014371,1728328292661,-503.0,0.00041643,120]
[340014372,1728328292671,-1259.32,0.00041643,120]
[340014373,1728328292680,-500.0,0.00041643,120]
[340014374,1728328292690,-500.0,0.00041643,14]
[340014375,1728328292700,-512.09,0.00041643,120]
[340014376,1728328292709,-538.11,0.00041643,120]
[340014377,1728328292719,-656.69,0.00041643,120]
[340014378,1728328292728,-360.68,0.00041643,120]
[340014379,1728328292738,-552.02667791,0.00041643,120]
[340014380,1728328292747,-502.44,0.00041643,120]
[340014381,1728328292757,-500.0,0.00041643,120]
[340014382,1728328292768,-500.0,0.00041643,120]
[340014383,1728328292778,-2246.05,0.00041643,120]
[340014384,1728328292788,-190.35465643,0.00041643,120]
[340014385,1728328292798,-1000.0,0.00041643,120]
[340014386,1728328292807,-500.0,0.00041643,120]
[340014387,1728328292817,-239.46330877,0.00041643,120]
[340014388,1728328292826,-500.0,0.00041643,120]
[340014389,1728328292835,-500.0,0.00041643,120]
[340014390,1728328292845,-500.0,0.00041643,120]
[340014391,1728328292854,-177.89692578,0.00041643,120]
[340014392,1728328292865,-2095.07,0.00041643,120]
[340014393,1728328292875,-160.13049487,0.00041643,120]
[340014394,1728328292885,-500.0,0.00041643,120]
[340014395,1728328292894,-252.50794684,0.00041643,120]
[340014396,1728328292904,-10292.9773473,0.0004165,60]
[340014397,1728328292914,-208.42849524,0.00041758,120]
[340014398,1728328292924,-150.0,0.00041886,120]
[340014399,1728328292933,-419.71,0.00041917,120]
[340014400,1728328292943,-526.85,0.00041917,120]
[340014401,1728328292952,-614.35515115,0.00041917,120]
[340014402,1728328292962,-500.0,0.00041917,120]
[340014403,1728328292971,-546.81,0.00041917,120]
[340014404,1728328292981,-1790.58,0.00041917,120]
[340014405,1728328292990,-500.0,0.00041917,30]
[340014406,1728328292999,-500.0,0.00041917,120]
[340014407,1728328293009,-641.52,0.00041917,120]
[340014408,1728328293019,-500.0,0.00041917,120]
[340014409,1728328293028,-500.0,0.00041917,120]
[340014410,1728328293038,-500.0,0.00041917,120]
[340014411,1728328293048,-500.0,0.00041917,120]
[340014412,1728328293058,-500.0,0.00041917,120]
[340014413,1728328293068,-500.0,0.00041917,120]
[340014414,1728328293078,-546.74,0.00041917,120]
[340014415,1728328293088,-213.7,0.00041917,120]
[340014416,1728328293098,-500.0,0.00041917,120]
[340014417,1728328293108,-278.85,0.00041917,120]
[340014418,1728328293121,-503.0,0.00041917,120]
[340014419,1728328293133,-1259.32,0.00041917,120]
[340014420,1728328293145,-315.88,0.00041917,120]
[340014421,1728328293156,-243.50707092,0.00041917,120]
[340014422,1728328293167,-500.0,0.00041917,14]
[340014423,1728328293178,-512.09,0.00041917,120]
[340014424,1728328293189,-538.11,0.00041917,120]
[340014425,1728328293199,-656.69,0.00041917,120]
[340014426,1728328293209,-502.44,0.00041917,120]
[340014427,1728328293220,-500.0,0.00041917,120]
[340014428,1728328293230,-500.0,0.00041917,120]
[340014429,1728328293240,-2246.05,0.00041917,120]
[340014430,1728328293249,-1000.0,0.00041917,120]
[340014431,1728328293259,-500.0,0.00041917,120]
[340014432,1728328293268,-455.65595694,0.00041917,120]
[340014433,1728328293278,-500.0,0.00041917,120]
[340014434,1728328293287,-500.0,0.00041917,120]
[340014435,1728328293297,-2095.07,0.00041917,120]
[340014436,1728328293307,-500.0,0.00041917,120]
[340014437,1728328293317,-1000.0,0.00041999,120]
[340014438,1728328293326,-50000.0,0.00042,42]
[340014439,1728328293336,-45400.42669645,0.00042,32]
[340014440,1728328293405,-748.82902201,0.00042,32]
[340014441,1728328293416,-275.5687984,0.00042,32]
[340014442,1728328293428,-1572.081095,0.00042,32]
[340014443,1728328293440,-606.05000001,0.00042,32]
[340014444,1728328293452,-1397.04438813,0.00042,32]
[340014445,1728328293462,-591.74359956,0.00042,20]
[340014446,1728328293472,-4413.99201231,0.00042,120]
[340014447,1728328293484,-11608.89214752,0.00042,120]
[340014448,1728328293496,-70864.27890022,0.00042,120]
[340014449,1728328293507,-3179.90798234,0.00042,120]
[340014450,1728328293519,-677.99999947,0.00042,120]
[340014451,1728328293530,-451.34,0.00042,120]
[340014452,1728328293542,-977.08949995,0.00042,120]
[340014453,1728328293555,-10898.22246283,0.00042,120]
[340014454,1728328293567,-1559.83935335,0.00042,120]
[340014455,1728328293579,-1004.84499967,0.00042,120]
[340014456,1728328293591,-912.85999773,0.00042,120]
[340014457,1728328293602,-369.15130269,0.00042,120]
[340014458,1728328293614,-261.60174887,0.00042,120]
[340014459,1728328293626,-1128.75496496,0.00042,120]
[340014460,1728328293639,-4643.55379647,0.00042,120]
[340014461,1728328293651,-2555.88000002,0.00042,120]
[340014462,1728328293662,-60066.49658659,0.00042,120]
[340014463,1728328293674,-12750.76903983,0.00042,120]
[340014464,1728328293686,-1033.05017563,0.00042,120]
[340014465,1728328293699,-1254.9910294,0.00042,120]
[340014466,1728328293713,-8924.9356803,0.00042,120]
[340014467,1728328293725,-1258.78347689,0.00042,120]
[340014468,1728328293737,-459.58986104,0.00042,120]
[340014469,1728328293749,-18885.441147,0.00042,120]
[340014470,1728328293761,-384.50318454,0.00042,120]
[340014471,1728328293773,-29473.23065038,0.00042,120]
[340014472,1728328293783,-500.0,0.00042,120]
[340014473,1728328293792,-150.0,0.00042,120]
[340014474,1728328293802,-175.4133808,0.00042,30]
[340014475,1728328293811,-6070.00878233,0.00042,120]
[340014476,1728328293821,-1279.49291049,0.00042,50]
[340014477,1728328293830,-624.0,0.00042,120]
[340014478,1728328293840,-1773.93145854,0.00042,120]
[340014479,1728328293850,-150.0,0.00042,120]
[340014480,1728328293859,-2110.0,0.00042,2]
[340014481,1728328293870,-2005.9803875,0.00042,120]
[340014482,1728328293881,-4998.0,0.00042,120]
[340014483,1728328293893,-29289.74389728,0.00042,120]
[340014484,1728328293902,-17667.57307801,0.00042,2]
[340014485,1728328293911,-8826.87427747,0.00042,2]
[340014486,1728328293922,-13392.49556495,0.00042,30]
[340014487,1728328293933,-38821.87290091,0.00042,30]
[340014488,1728328293944,-1657.21148328,0.00042,30]
[340014489,1728328294043,-533.44039148,0.00042,30]
[340014490,1728328294054,-379.71008372,0.00042,30]
[340014491,1728328294065,-1104.89183922,0.00042,30]
[340014492,1728328294076,-754.85459043,0.00042,30]
[340014493,1728328294088,-1526.45862146,0.00042,30]
[340014494,1728328294099,-5288.40137691,0.00042,30]
[340014495,1728328294111,-498.74334112,0.00042,30]
[340014496,1728328294122,-659.77209503,0.00042,30]
[340014521,1728329242629,300.0,0.000102,3]
[340014522,1728329244737,600.0,0.000103,3]
[340014523,1728329246854,900.0,0.000104,3]
[340014524,1728329248959,1300.0,0.000105,3]
[340014525,1728329251157,1600.0,0.000106,3]
[340014526,1728329251826,-2004.617,0.000105,2]
[340014527,1728329251849,-500.0,0.00010573,2]
[340014528,1728329251871,-500.0,0.00010573,2]
[340014529,1728329251894,-35.383,0.00010581,2]
[340014530,1728329253226,300.0,0.000107,3]
[340014531,1728329255391,203.26664586,0.000108,3]
[340014532,1728329255420,96.73335414,0.000108,3]
[340014533,1728329257507,300.0,0.000109,3]
[340014534,1728329298173,-500.0,0.00010573,2]
[340014535,1728329298197,-367.26197673,0.00010581,2]
[340014536,1728329298220,-720.68499204,0.0001059,2]
[340014537,1728329298243,-150.0,0.00010599,2]
[340014538,1728329298266,-791.3725,0.000106,2]
[340014539,1728329298289,-510.68053123,0.000106,2]
[340014564,1728329431510,-150.0,0.00010599,2]
[340014565,1728329431527,-1934.775,0.000106,2]
[340014566,1728329431558,-608.34396347,0.000106,2]
[340014570,1728329431586,-10932.647646,0.000106,2]
[340014571,1728329431623,-15853.30570806,0.000106,2]
[340014572,1728329431634,-20216.49123751,0.000106,2]
[340014573,1728329431662,-1303.27384699,0.000106,2]
[340014574,1728329431673,-849.36959246,0.000106,2]
[340014580,1728329431839,-53799.99999999,0.000106,2]
[340014582,1728329431851,-898.95103606,0.000106,2]
[340014584,1728329431863,-1425.76150624,0.000106,2]
[340014586,1728329431875,-663.67270921,0.000106,2]
[340014588,1728329431886,-6236.81216735,0.000106,2]
[340014589,1728329431897,-4592.22575356,0.000106,2]
[340014590,1728329431908,-313.45910187,0.000106,2]
[340014591,1728329431918,-249.6507649,0.000106,2]
[340014592,1728329431929,-750.3492351,0.000106,2]
[340014593,1728329431939,-1087.33653113,0.00010899,2]
[340014594,1728329431950,-1695.2818,0.00010899,2]
[340014608,1728329437545,-605.11550636,0.00010899,2]
[340014609,1728329437580,-1632.705,0.00010899,2]
[340014610,1728329437696,-19489.86899283,0.00010899,2]
[340014611,1728329437727,-25489.69216968,0.00010899,2]
[340014612,1728329437737,-7859.67532801,0.00010899,2]
[340014613,1728329437746,-7859.67532797,0.00010899,2]
[340014614,1728329437758,-7859.67532797,0.00010899,2]
[340014615,1728329437767,-7859.67532797,0.00010899,2]
[340014616,1728329437777,-7859.67532797,0.00010899,2]
[340014617,1728329437786,-7859.67532797,0.00010899,2]
[340014618,1728329437795,-7859.67532797,0.00010899,2]
[340014619,1728329437804,-7859.67532797,0.00010899,2]
[340014620,1728329437814,-7859.67532797,0.00010899,2]
[340014621,1728329437825,-172.06224844,0.000109,2]
[340014622,1728329437834,-1154.26906258,0.000109,2]
[340014623,1728329437843,-1696.56135563,0.000109,2]
[340014624,1728329437853,-12189.35891565,0.000109,2]
[340014625,1728329437862,-7859.67532797,0.000109,2]
[340014626,1728329437871,-410.945618,0.000109,2]
[340014627,1728329437880,-848.45639225,0.000109,2]
[340014628,1728329437890,-168.28273339,0.000109,2]
[340014629,1728329437899,-343.79982692,0.000109,2]
[340014630,1728329437908,-500.0,0.00010958,2]
[340014631,1728329437918,-500.0,0.00010958,2]
[340014632,1728329437928,-387.68476312,0.00010958,2]
[340014633,1728329437938,-151.2,0.00010959,2]
[340014634,1728329437948,-157.05,0.00010959,2]
[340014635,1728329437958,-500.0,0.00010973,2]
[340014636,1728329437968,-540.65637729,0.00010973,2]
[340014637,1728329437977,-161.44095885,0.00010973,2]
[340014638,1728329437986,-500.0,0.00010973,2]
[340014639,1728329437996,-500.0,0.00010973,2]
[340014641,1728329438008,-500.0,0.00010997,2]
[340014643,1728329438017,-267.8254086,0.00010997,2]
[340014644,1728329438026,-226807.4723825,0.00010998,2]
[340014646,1728329438036,-86655.78888771,0.00011,2]
[340014648,1728329438048,-32604.32286499,0.00011,2]
[340014650,1728329438067,-23710.2324318,0.00011,2]
[340014652,1728329438078,-1300.0,0.00011,2]
[340014654,1728329438089,-299.25,0.00011,2]
[340014688,1728329439598,-707.12336694,0.00011,2]
[340014689,1728329439609,-13256.87732019,0.00011,2]
[340014690,1728329439621,-5339.53967571,0.00011,2]
[340014691,1728329439843,-315.3343428,0.00011,2]
[340014736,1728329442870,-34235.6,0.00011,2]
[340014768,1728329445560,-1138.28203649,0.00011,2]
[340014769,1728329445573,-1261.11299014,0.00011,2]
[340014814,1728329622076,295.87179978,0.00015,25]
[340014815,1728329622944,295.87179978,0.00015,30]
[340014832,1728330123859,315.25,8.707e-05,2]
[340014837,1728330488878,394.272155,0.00010187,2]
[340014858,1728330631670,-250.0,0.00010339,2]
[340014860,1728330631679,-151.44091038,0.00010412,2]
[340014862,1728330631690,-460.19652237,0.00010412,2]
[340014864,1728330631701,-1601.38575,0.00010412,2]
[340014865,1728330631712,-16570.37783984,0.00010412,2]
[340014866,1728330631725,-389.84087267,0.00010412,2]
[340014867,1728330631736,-4726.75810474,0.00010412,2]
[340014868,1728330631746,-1000.0,0.00010448,2]
[340014869,1728330631755,-12140.4477117,0.000105,2]
[340014870,1728330631766,-12340.8447883,0.000105,2]
[340014871,1728330631775,-10167.14573065,0.000105,2]
[340014872,1728330631786,-382.31751455,0.000105,2]
[340014873,1728330631797,-2787.35794757,0.000105,2]
[340014874,1728330631810,-2000.0,0.000105,2]
[340014875,1728330631854,-4207.88817068,0.000105,2]
[340014876,1728330631866,-2375.28054833,0.000105,2]
[340014877,1728330631875,-188.54,0.00010538,2]
[340014878,1728330631885,-150.0,0.00010599,2]
[340014879,1728330631894,-172.8445,0.000106,2]
[340014880,1728330631904,-5463.1087,0.000106,2]
[340014881,1728330631915,-1000.0,0.000106,2]
[340014882,1728330631924,-250.0,0.00010642,2]
[340014883,1728330631933,-748.24,0.00010642,2]
[340014884,1728330631942,-575.21,0.00010642,2]
[340014885,1728330631951,-501.77689152,0.00010673,2]
[340014886,1728330631960,-499.99,0.00010673,2]
[340014887,1728330631970,-743.23,0.00010673,2]
[340014888,1728330631979,-500.0,0.00010673,2]
[340014890,1728330631988,-306.44469223,0.00010673,2]
[340014892,1728330631997,-1758.8238,0.000107,2]
[340014893,1728330632006,-100000.0,0.000107,2]
[340014895,1728330632015,-151.137,0.000107,2]
[340014897,1728330632024,-38780.181,0.000107,2]
[340014899,1728330632033,-60938.2923,0.000107,2]
[340014901,1728330632042,-49624.428,0.000107,2]
[340014902,1728330632051,-4986.3405,0.000107,2]
[340014904,1728330632060,-493.199,0.000107,2]
[340014906,1728330632069,-2900.0,0.000107,2]
[340014908,1728330632078,-2320.35,0.000107,2]
[340014910,1728330632087,-13008.55,0.000107,2]
[340014911,1728330632096,-150.99,0.000107,2]
[340014913,1728330632105,-1280.75,0.000107,2]
[340014915,1728330632114,-299.99,0.000107,2]
[340014917,1728330632123,-353.03756105,0.00010773,2]
[340014919,1728330632132,-1000.0,0.000108,2]
[340014920,1728330632141,-36706.1016857,0.000108,2]
[340014922,1728330632153,-290.16336359,0.000108,2]
[340014923,1728330632172,-947.5284735,0.000108,2]
[340014928,1728330637925,-1331.2783601,0.00010313,2]
[340014929,1728330637935,-100000.0,0.000106,2]
[340014930,1728330637944,-191542.11807721,0.000108,2]
[340014931,1728330637953,-3203.7251,0.000108,2]
[340014932,1728330637963,-159.39020912,0.00010889,2]
[340014933,1728330637972,-3090.8499534,0.00010899,2]
[340014934,1728330637981,-3090.84995334,0.00010899,2]
[340014935,1728330637991,-3090.84995334,0.00010899,2]
[340014936,1728330638000,-3090.84995334,0.00010899,2]
[340014937,1728330638009,-3090.84995334,0.00010899,2]
[340014938,1728330638019,-3090.84995334,0.00010899,2]
[340014939,1728330638028,-3090.84995334,0.00010899,2]
[340014940,1728330638037,-3090.84995334,0.00010899,2]
[340014941,1728330638046,-3090.84995334,0.00010899,2]
[340014942,1728330638055,-973.22698266,0.000109,2]
[340014943,1728330638064,-4513.4936,0.000109,2]
[340014944,1728330638073,-158.10949927,0.000109,2]
[340014945,1728330638083,-323.47614328,0.000109,2]
[340014946,1728330638092,-3090.84995334,0.000109,2]
[340014947,1728330638101,-1162.5616029,0.000109,2]
[340014948,1728330638111,-207.61965061,0.000109,2]
[340014949,1728330638120,-500.0,0.00010958,2]
[340014950,1728330638129,-500.0,0.00010958,2]
[340014951,1728330638140,-424.11791238,0.00010958,2]
[340014952,1728330638149,-500.0,0.00010958,2]
[340014953,1728330638159,-500.0,0.00010958,2]
[340014954,1728330638168,-184.36552067,0.00010958,2]
[340014955,1728330638178,-162.72,0.00010959,2]
[340014956,1728330638188,-150.0,0.00010959,2]
[340014957,1728330638197,-250.0,0.00010959,2]
[340014958,1728330638207,-262.97,0.00010959,2]
[340014959,1728330638216,-155.41,0.00010959,2]
[340014960,1728330638225,-315.25,0.00010971,2]
[340014961,1728330638234,-9999.99,0.00010973,2]
[340014962,1728330638244,-115655.85033701,0.00011,2]
[340015037,1728330639878,-634.71290532,0.000109,2]
[340015038,1728330639889,-2238.27041146,0.000109,2]
[340015039,1728330639898,-2029.53517394,0.00011,2]
[340015040,1728330641569,150.0,0.00013,3]
[340015057,1728330642900,-1261.31414876,0.00011,2]
[340015058,1728330642958,-9001.87014775,0.00011,2]
[340015059,1728330642969,-292.35005528,0.00011,2]
[340015100,1728330645747,-250.0,0.000106,2]
[340015105,1728331274676,329.78,9.477e-05,2]
[340015106,1728331421943,-26568.0,0.000106,2]
[340015129,1728331831795,-737.5985368,0.000106,2]
[340015130,1728331831807,-351.89855854,0.000106,2]
[340015131,1728331831849,-2045.75766083,0.000106,2]
[340015132,1728331831861,-3290.42534383,0.000106,2]
[340015133,1728331831870,-500.0,0.00010873,2]
[340015134,1728331831879,-184.64409658,0.00010873,2]
[340015135,1728331831888,-150.0,0.00010899,2]
[340015136,1728331831897,-32710.7812,0.000109,2]
[340015137,1728331831906,-1000.0,0.000109,2]
[340015138,1728331831915,-20805.4463,0.000109,2]
[340015139,1728331831924,-23083.9972,0.000109,2]
[340015140,1728331831933,-1704.2607,0.000109,2]
[340015141,1728331831942,-7500.0,0.000109,2]
[340015142,1728331831951,-1697.85055665,0.000109,2]
[340015143,1728331831960,-47186.19252608,0.000109,2]
[340015144,1728331831970,-2250.0,0.000109,2]
[340015145,1728331831979,-167.34,0.00010959,2]
[340015146,1728331831987,-500.0,0.00010999,2]
[340015147,1728331831996,-482.0660066,0.00010999,2]
[340015148,1728331832006,-500.0,0.00010999,2]
[340015149,1728331832015,-500.0,0.00010999,2]
[340015150,1728331832024,-500.0,0.00010999,2]
[340015151,1728331832033,-500.0,0.00010999,2]
[340015152,1728331832042,-538.81848576,0.00010999,2]
[340015153,1728331832050,-500.0,0.00010999,2]
[340015154,1728331832059,-275470.54947045,0.00011,2]
[340015155,1728331832071,-337.34931894,0.00011,2]
[340015156,1728331832082,-8486.04533077,0.00011,2]
[340015157,1728331832092,-1285.70283055,0.00011,2]
[340015158,1728331832103,-357.46371413,0.00011,2]
[340015159,1728331832114,-4363.30841209,0.00011,2]
[340015160,1728331832124,-588.74678369,0.00011,2]
[340015162,1728331832135,-1974.18309637,0.00011,2]
[340015164,1728331832147,-2248.6741294,0.00011,2]
[340015166,1728331832158,-750.26546194,0.00011,2]
[340015168,1728331832169,-1266.60175907,0.00011,2]
[340015170,1728331832180,-3952.11216265,0.00011,2]
[340015172,1728331832191,-10402.4493057,0.00011,2]
[340015175,1728331832202,-4212.6311127,0.00011,2]
[340015177,1728331832213,-7068.50393134,0.00011,2]
[340015179,1728331832224,-1644.32044716,0.00011,2]
[340015181,1728331832235,-1274.32993384,0.00011,2]
[340015183,1728331832246,-2498.3477175,0.00011,2]
[340015185,1728331832257,-3372.54487743,0.00011,2]
[340015187,1728331832268,-2285.89488508,0.00011,2]
[340015188,1728331832279,-983.93,0.00011,2]
[340015189,1728331832290,-664.57727663,0.00011,2]
[340015190,1728331832301,-628.42,0.00011,2]
[340015191,1728331832312,-550.80562424,0.00011,2]
[340015192,1728331832323,-2984.3221489,0.00011,2]
[340015194,1728331832334,-11343.92893999,0.00011,2]
[340015196,1728331832346,-562.21440665,0.00011,2]
[340015197,1728331832357,-5395.38119057,0.00011,2]
[340015198,1728331832373,-12379.10156961,0.00011,2]
[340015199,1728331832384,-5221.07153573,0.00011,2]
[340015200,1728331832395,-8946.45920343,0.00011,2]
[340015201,1728331832406,-633.39617763,0.00011,2]
[340015202,1728331832417,-400.0,0.00011,2]
[340015203,1728331832432,-793.35,0.00011,2]
[340015204,1728331833912,329.75,9.225e-05,2]
[340015213,1728331837873,-612.18240239,0.00011,2]
[340015214,1728331837884,-313.27,0.00011,2]
[340015215,1728331837895,-1120.66502401,0.00011,2]
[340015216,1728331837907,-254.99999,0.00011,2]
[340015217,1728331837918,-103352.02889805,0.00011,2]
[340015218,1728331837929,-423.30439528,0.00011,2]
[340015219,1728331837940,-189368.57913535,0.00011,2]
[340015220,1728331837977,-5104954.02865873,0.00011,2]
[340015221,1728331837988,-788749.27545922,0.00011,2]
[340015222,1728331838000,-1850.0,0.00011,2]
[340015223,1728331838011,-308.42346545,0.00011,2]
[340015224,1728331838023,-888.51999758,0.00011,2]
[340015225,1728331838034,-18958.69146001,0.00011,2]
[340015226,1728331838045,-3755.47355016,0.00011,2]
[340015227,1728331838056,-4936.4916975,0.00011,2]
[340015228,1728331838068,-1372.2,0.00011,2]
[340015229,1728331838079,-746.11183721,0.00011,2]
[340015230,1728331838090,-597.24,0.00011,2]
[340015231,1728331838102,-1886.88,0.00011,2]
[340015232,1728331838113,-479.28425027,0.00011,2]
[340015233,1728331838125,-765.41975306,0.00011,2]
[340015234,1728331838136,-1340.01178555,0.00011,2]
[340015235,1728331838148,-452.64,0.00011,2]
[340015236,1728331838160,-880.12,0.00011,2]
[340015237,1728331838171,-879.14563992,0.00011,2]
[340015248,1728331838317,-1893.1272692,0.00011,2]
[340015250,1728331838328,-659.75132017,0.00011,2]
[340015252,1728331838340,-1524.03827589,0.00011,2]
[340015254,1728331838354,-1765.0,0.00011,2]
[340015257,1728331838366,-22590.85096767,0.00011,2]
[340015259,1728331838377,-941.43031319,0.00011,2]
[340015261,1728331838388,-28766.3029231,0.00011,2]
[340015264,1728331838402,-2397.52493888,0.00011,2]
[340015266,1728331838414,-514.88286204,0.00011,2]
[340015268,1728331838425,-5740.77834692,0.00011,2]
[340015271,1728331838444,-1630.74377077,0.00011,2]
[340015273,1728331838456,-1729.24004235,0.00011,2]
[340015276,1728331838467,-2757.58727979,0.00011,2]
[340015278,1728331838480,-6756.10214935,0.00011,2]
[340015280,1728331838491,-1921.952907,0.00011,2]
[340015282,1728331838503,-2056.46944238,0.00011,2]
[340015284,1728331838515,-1524.64822492,0.00011,2]
[340015287,1728331838527,-947.15508015,0.00011,2]
[340015289,1728331838538,-348.23005832,0.00011,2]
[340015328,1728331839860,-269.5,0.00011,2]
[340015329,1728331839871,-2857.79942523,0.00011,2]
[340015330,1728331839883,-818.08260575,0.00011,2]
[340015331,1728331839894,-558.89350208,0.00011,2]
[340015332,1728331839905,-13563.56734335,0.00011,2]
[340015333,1728331839916,-1637.29710056,0.00011,2]
[340015334,1728331839928,-982.24203917,0.00011,2]
[340015335,1728331839940,-412.02049378,0.00011,2]
[340015336,1728331839951,-927.22751103,0.00011,2]
[340015337,1728331839962,-2364.77512759,0.00011,2]
[340015338,1728331839974,-8693.38203041,0.00011,2]
[340015339,1728331839985,-573.21934277,0.00011,2]
[340015340,1728331839996,-279142.77628386,0.00011,2]
[340015341,1728331840023,-11809.42168032,0.00011,2]